[Event "Titled Tuesday Blitz June 13 Early 2023"]
[White "Kuzmin, Roman"]
[Black "Keymer, Vincent"]
[WhiteFideId "44134932"]
[BlackFideId "12940690"]
[WhiteElo "2122"]
[BlackElo "2669"]
[Result "1/2-1/2"]
[Round "1"]
[TimeControl "180+2"]
[Date "2023.06.13"]
[WhiteClock "0:00:06"]
[BlackClock "0:00:02"]
[Board "33"]

1. e4 {[%clk 0:02:55]}  c6 {[%clk 0:02:59]} 2. Nf3 {[%clk 0:02:44]}  d5 {[%clk 0:03:00]} 3. Nc3 {[%clk 0:02:44]}  dxe4 {[%clk 0:02:59]} 4. Nxe4 {[%clk 0:02:45]}  Nf6 {[%clk 0:03:00]} 5. Nxf6+ {[%clk 0:02:44]}  exf6 {[%clk 0:03:01]} 6. Bc4 {[%clk 0:02:41]}  Qe7+ {[%clk 0:02:59]} 7. Qe2 {[%clk 0:02:41]}  Nd7 {[%clk 0:02:59]} 8. d4 {[%clk 0:02:37]}  Nb6 {[%clk 0:02:59]} 9. Qxe7+ {[%clk 0:02:35]}  Bxe7 {[%clk 0:02:59]} 10. Bd3 {[%clk 0:02:34]}  Bg4 {[%clk 0:02:59]} 11. Be2 {[%clk 0:02:22]}  O-O-O {[%clk 0:02:55]} 12. Be3 {[%clk 0:02:15]}  Rhe8 {[%clk 0:02:47]} 13. O-O-O {[%clk 0:02:12]}  Nd5 {[%clk 0:02:46]} 14. h3 {[%clk 0:01:53]}  Bh5 {[%clk 0:02:44]} 15. g4 {[%clk 0:01:48]}  Bg6 {[%clk 0:02:41]} 16. Bd3 {[%clk 0:01:48]}  Bxd3 {[%clk 0:02:27]} 17. Rxd3 {[%clk 0:01:48]}  Nb4 {[%clk 0:02:27]} 18. Ra3 {[%clk 0:01:47]}  a6 {[%clk 0:02:27]} 19. Kb1 {[%clk 0:01:45]}  Bd6 {[%clk 0:02:26]} 20. c4 {[%clk 0:01:41]}  b5 {[%clk 0:02:19]} 21. Rc1 {[%clk 0:01:36]}  Kd7 {[%clk 0:02:04]} 22. Bd2 {[%clk 0:01:11]}  bxc4 {[%clk 0:02:02]} 23. Rxc4 {[%clk 0:01:12]}  Rb8 {[%clk 0:02:01]} 24. Bxb4 {[%clk 0:01:05]}  Rxb4 {[%clk 0:02:01]} 25. Rxb4 {[%clk 0:01:01]}  Bxb4 {[%clk 0:02:02]} 26. Re3 {[%clk 0:01:02]}  Rb8 {[%clk 0:01:44]} 27. Kc2 {[%clk 0:01:01]}  Bd6 {[%clk 0:01:43]} 28. Rb3 {[%clk 0:00:56]}  Ke6 {[%clk 0:01:15]} 29. Rxb8 {[%clk 0:00:41]}  Bxb8 {[%clk 0:01:16]} 30. Nh4 {[%clk 0:00:41]}  g6 {[%clk 0:01:04]} 31. Kd3 {[%clk 0:00:40]}  Kd5 {[%clk 0:01:04]} 32. Ng2 {[%clk 0:00:39]}  Ke6 {[%clk 0:00:59]} 33. Ke4 {[%clk 0:00:30]}  f5+ {[%clk 0:00:47]} 34. gxf5+ {[%clk 0:00:31]}  gxf5+ {[%clk 0:00:48]} 35. Kd3 {[%clk 0:00:30]}  f4 {[%clk 0:00:34]} 36. Ke4 {[%clk 0:00:18]}  f5+ {[%clk 0:00:34]} 37. Kd3 {[%clk 0:00:18]}  Kd5 {[%clk 0:00:27]} 38. Nh4 {[%clk 0:00:17]}  Ke6 {[%clk 0:00:24]} 39. Kc4 {[%clk 0:00:16]}  Ba7 {[%clk 0:00:20]} 40. Nf3 {[%clk 0:00:16]}  h6 {[%clk 0:00:21]} 41. b4 {[%clk 0:00:15]}  Kd6 {[%clk 0:00:21]} 42. a4 {[%clk 0:00:15]}  Bb6 {[%clk 0:00:21]} 43. Ne5 {[%clk 0:00:14]}  h5 {[%clk 0:00:20]} 44. Ng6 {[%clk 0:00:14]}  f3 {[%clk 0:00:17]} 45. Nh4 {[%clk 0:00:14]}  Ke6 {[%clk 0:00:17]} 46. Nxf3 {[%clk 0:00:13]}  Ba7 {[%clk 0:00:17]} 47. Ng5+ {[%clk 0:00:13]}  Kf6 {[%clk 0:00:17]} 48. Nf3 {[%clk 0:00:12]}  Ke6 {[%clk 0:00:18]} 49. Ne5 {[%clk 0:00:12]}  Kd6 {[%clk 0:00:18]} 50. Nd3 {[%clk 0:00:12]}  Bb6 {[%clk 0:00:15]} 51. Nf4 {[%clk 0:00:12]}  h4 {[%clk 0:00:14]} 52. Ng6 {[%clk 0:00:12]}  Bd8 {[%clk 0:00:14]} 53. Ne5 {[%clk 0:00:12]}  Bf6 {[%clk 0:00:13]} 54. Nd3 {[%clk 0:00:09]}  Kc7 {[%clk 0:00:07]} 55. Nc5 {[%clk 0:00:09]}  a5 {[%clk 0:00:05]} 56. bxa5 {[%clk 0:00:06]}  Be7 {[%clk 0:00:06]} 57. Nd3 {[%clk 0:00:04]}  Bd6 {[%clk 0:00:06]} 58. Ne5 {[%clk 0:00:03]}  Kb7 {[%clk 0:00:05]} 59. Nf3 {[%clk 0:00:03]}  Be7 {[%clk 0:00:03]} 60. d5 {[%clk 0:00:03]}  cxd5+ {[%clk 0:00:03]} 61. Kxd5 {[%clk 0:00:04]}  Ka6 {[%clk 0:00:03]} 62. Ke6 {[%clk 0:00:05]}  Bc5 {[%clk 0:00:03]} 63. Nxh4 {[%clk 0:00:04]}  Bxf2 {[%clk 0:00:04]} 64. Nxf5 {[%clk 0:00:04]}  Kxa5 {[%clk 0:00:05]} 65. Ke5 {[%clk 0:00:03]}  Kxa4 {[%clk 0:00:05]} 66. Ke4 {[%clk 0:00:04]}  Kb4 {[%clk 0:00:05]} 67. Kf3 {[%clk 0:00:05]}  Be1 {[%clk 0:00:05]} 68. Ng3 {[%clk 0:00:05]}  Kc5 {[%clk 0:00:03]} 69. h4 {[%clk 0:00:05]}  Kd6 {[%clk 0:00:02]} 70. Nf5+ {[%clk 0:00:05]}  Ke6 {[%clk 0:00:03]} 71. Kg4 {[%clk 0:00:06]}  Bxh4 {[%clk 0:00:02]} 1/2-1/2


[Site "https://www.chess.com"]

[Event "Titled Tuesday Blitz June 13 Early 2023"]
[White "Mrithyunjay Mahadevan"]
[Black "Bharath Subramaniyam H"]
[WhiteFideId "45003521"]
[BlackFideId "46634827"]
[WhiteElo "1626"]
[BlackElo "2400"]
[Result "0-1"]
[Round "1"]
[TimeControl "180+2"]
[Date "2023.06.13"]
[WhiteClock "0:00:04"]
[BlackClock "0:01:06"]
[Board "37"]

1. e4 {[%clk 0:02:48]}  c6 {[%clk 0:02:57]} 2. Nf3 {[%clk 0:02:42]}  d5 {[%clk 0:02:57]} 3. Nc3 {[%clk 0:02:34]}  g6 {[%clk 0:02:56]} 4. d4 {[%clk 0:02:31]}  Bg7 {[%clk 0:02:55]} 5. Be3 {[%clk 0:02:28]}  Nh6 {[%clk 0:02:38]} 6. Qd2 {[%clk 0:02:21]}  Ng4 {[%clk 0:02:37]} 7. O-O-O {[%clk 0:02:19]}  Nxe3 {[%clk 0:02:34]} 8. fxe3 {[%clk 0:02:20]}  O-O {[%clk 0:02:33]} 9. h4 {[%clk 0:02:15]}  h5 {[%clk 0:02:30]} 10. Bd3 {[%clk 0:02:08]}  dxe4 {[%clk 0:02:26]} 11. Nxe4 {[%clk 0:02:09]}  Nd7 {[%clk 0:02:23]} 12. Kb1 {[%clk 0:02:09]}  Nf6 {[%clk 0:02:19]} 13. c3 {[%clk 0:02:07]}  a5 {[%clk 0:02:13]} 14. Nxf6+ {[%clk 0:02:03]}  exf6 {[%clk 0:02:12]} 15. Rdg1 {[%clk 0:02:00]}  a4 {[%clk 0:02:10]} 16. Nh2 {[%clk 0:01:58]}  f5 {[%clk 0:02:06]} 17. Nf3 {[%clk 0:01:54]}  a3 {[%clk 0:02:05]} 18. b3 {[%clk 0:01:53]}  c5 {[%clk 0:02:04]} 19. Bc2 {[%clk 0:01:51]}  Be6 {[%clk 0:01:59]} 20. c4 {[%clk 0:01:48]}  b5 {[%clk 0:01:55]} 21. d5 {[%clk 0:01:44]}  Bd7 {[%clk 0:01:53]} 22. Bd3 {[%clk 0:01:40]}  Qf6 {[%clk 0:01:52]} 23. Kc2 {[%clk 0:01:36]}  bxc4 {[%clk 0:01:46]} 24. Bxc4 {[%clk 0:01:33]}  Rfe8 {[%clk 0:01:46]} 25. Rb1 {[%clk 0:01:25]}  f4 {[%clk 0:01:44]} 26. exf4 {[%clk 0:01:20]}  Bf5+ {[%clk 0:01:37]} 27. Bd3 {[%clk 0:01:19]}  Re2 {[%clk 0:01:30]} 28. Qxe2 {[%clk 0:01:14]}  Qc3+ {[%clk 0:01:30]} 29. Kd1 {[%clk 0:01:10]}  Bxd3 {[%clk 0:01:31]} 30. Qd2 {[%clk 0:01:02]}  Bxb1 {[%clk 0:01:31]} 31. Qxc3 {[%clk 0:01:02]}  Bxc3 {[%clk 0:01:31]} 32. Ke2 {[%clk 0:01:03]}  Bxa2 {[%clk 0:01:31]} 33. Kd3 {[%clk 0:01:03]}  Bg7 {[%clk 0:01:12]} 34. Nd2 {[%clk 0:01:01]}  Bb1+ {[%clk 0:01:10]} 35. Rxb1 {[%clk 0:00:50]}  a2 {[%clk 0:01:10]} 36. d6 {[%clk 0:00:51]}  axb1=Q+ {[%clk 0:01:09]} 37. Nxb1 {[%clk 0:00:52]}  Rd8 {[%clk 0:01:09]} 38. Kc4 {[%clk 0:00:52]}  Rxd6 {[%clk 0:01:09]} 39. Kxc5 {[%clk 0:00:53]}  Rd1 {[%clk 0:01:10]} 40. Na3 {[%clk 0:00:53]}  Bf8+ {[%clk 0:01:10]} 41. Kc6 {[%clk 0:00:52]}  Bxa3 {[%clk 0:01:11]} 42. f5 {[%clk 0:00:52]}  gxf5 {[%clk 0:01:10]} 43. g4 {[%clk 0:00:53]}  fxg4 {[%clk 0:01:10]} 44. b4 {[%clk 0:00:52]}  Bxb4 {[%clk 0:01:10]} 45. Kb5 {[%clk 0:00:46]}  g3 {[%clk 0:01:10]} 46. Kxb4 {[%clk 0:00:02]}  g2 {[%clk 0:01:10]} 47. Kb5 {[%clk 0:00:03]}  g1=Q {[%clk 0:01:10]} 48. Kc6 {[%clk 0:00:04]}  Qd4 {[%clk 0:01:09]} 49. Kb5 {[%clk 0:00:04]}  Qc3 {[%clk 0:01:07]} 50. Kb6 {[%clk 0:00:04]}  Rb1+ {[%clk 0:01:07]} 51. Ka7 {[%clk 0:00:04]}  Qa3# {[%clk 0:01:06]} 0-1


[Site "https://www.chess.com"]

[Event "Titled Tuesday Blitz June 13 Early 2023"]
[White "Hristodoulou, Panagiotis"]
[Black "Galchenko, Matvey"]
[WhiteFideId "4214340"]
[BlackFideId "24175480"]
[WhiteElo "2272"]
[BlackElo "2423"]
[Result "0-1"]
[Round "1"]
[TimeControl "180+2"]
[Date "2023.06.13"]
[WhiteClock "0:00:01"]
[BlackClock "0:00:05"]
[Board "43"]

1. e4 {[%clk 0:02:58]}  e6 {[%clk 0:02:55]} 2. d4 {[%clk 0:02:54]}  d5 {[%clk 0:02:55]} 3. Nc3 {[%clk 0:02:54]}  Bb4 {[%clk 0:02:55]} 4. Ne2 {[%clk 0:02:54]}  Nc6 {[%clk 0:02:51]} 5. a3 {[%clk 0:02:54]}  Ba5 {[%clk 0:02:50]} 6. e5 {[%clk 0:02:50]}  f6 {[%clk 0:02:50]} 7. Nf4 {[%clk 0:02:50]}  fxe5 {[%clk 0:02:23]} 8. Qh5+ {[%clk 0:02:40]}  Kf8 {[%clk 0:02:23]} 9. dxe5 {[%clk 0:02:40]}  Qe8 {[%clk 0:01:58]} 10. Qxe8+ {[%clk 0:02:25]}  Kxe8 {[%clk 0:01:59]} 11. Bb5 {[%clk 0:02:25]}  Ne7 {[%clk 0:01:57]} 12. Bd2 {[%clk 0:02:17]}  a6 {[%clk 0:01:45]} 13. Bxc6+ {[%clk 0:02:17]}  Nxc6 {[%clk 0:01:46]} 14. Nd3 {[%clk 0:02:17]}  Bd7 {[%clk 0:01:38]} 15. O-O-O {[%clk 0:02:12]}  Bb6 {[%clk 0:01:25]} 16. f4 {[%clk 0:02:09]}  Ne7 {[%clk 0:01:21]} 17. Rhf1 {[%clk 0:01:45]}  c5 {[%clk 0:01:16]} 18. b4 {[%clk 0:01:27]}  cxb4 {[%clk 0:00:50]} 19. axb4 {[%clk 0:01:26]}  Rc8 {[%clk 0:00:51]} 20. Kb2 {[%clk 0:01:23]}  Rf8 {[%clk 0:00:40]} 21. Ra1 {[%clk 0:01:14]}  Bd4 {[%clk 0:00:28]} 22. Kb3 {[%clk 0:01:11]}  Nf5 {[%clk 0:00:22]} 23. Rae1 {[%clk 0:01:06]}  h5 {[%clk 0:00:18]} 24. g3 {[%clk 0:01:02]}  Ke7 {[%clk 0:00:16]} 25. Rc1 {[%clk 0:00:58]}  b6 {[%clk 0:00:16]} 26. Rf3 {[%clk 0:00:34]}  a5 {[%clk 0:00:11]} 27. bxa5 {[%clk 0:00:25]}  bxa5 {[%clk 0:00:12]} 28. Nd1 {[%clk 0:00:25]}  Bb6 {[%clk 0:00:09]} 29. c3 {[%clk 0:00:23]}  Bb5 {[%clk 0:00:08]} 30. N3b2 {[%clk 0:00:22]}  Rb8 {[%clk 0:00:08]} 31. Ka2 {[%clk 0:00:21]}  Be2 {[%clk 0:00:09]} 32. Rd3 {[%clk 0:00:21]}  Rfc8 {[%clk 0:00:08]} 33. Ka1 {[%clk 0:00:10]}  a4 {[%clk 0:00:07]} 34. Ka2 {[%clk 0:00:08]}  Bc5 {[%clk 0:00:07]} 35. Re3 {[%clk 0:00:06]}  Nxe3 {[%clk 0:00:05]} 36. Nxe3 {[%clk 0:00:06]}  a3 {[%clk 0:00:05]} 37. Nbd1 {[%clk 0:00:05]}  Rb7 {[%clk 0:00:04]} 38. Nc2 {[%clk 0:00:03]}  Rcb8 {[%clk 0:00:04]} 39. Nb4 {[%clk 0:00:04]}  Bc4+ {[%clk 0:00:04]} 40. Kxa3 {[%clk 0:00:03]}  Ra8+ {[%clk 0:00:05]} 41. Kb2 {[%clk 0:00:03]}  Kd7 {[%clk 0:00:04]} 42. Ra1 {[%clk 0:00:02]}  Rxa1 {[%clk 0:00:03]} 43. Kxa1 {[%clk 0:00:03]}  d4 {[%clk 0:00:04]} 44. Nc2 {[%clk 0:00:03]}  Bb3 {[%clk 0:00:03]} 45. Kb2 {[%clk 0:00:01]}  Ba4+ {[%clk 0:00:03]} 46. Nb4 {[%clk 0:00:02]}  dxc3+ {[%clk 0:00:03]} 47. Bxc3 {[%clk 0:00:02]}  Bxb4 {[%clk 0:00:03]} 48. Bxb4 {[%clk 0:00:02]}  Rxb4+ {[%clk 0:00:04]} 49. Ka3 {[%clk 0:00:03]}  Rd4 {[%clk 0:00:04]} 50. Nc3 {[%clk 0:00:01]}  Bc6 {[%clk 0:00:05]} 0-1


[Site "https://www.chess.com"]

[Event "Titled Tuesday Blitz June 13 Early 2023"]
[White "Kokoszczynski, Jan"]
[Black "Gorovets, Andrey"]
[WhiteFideId "1174460"]
[BlackFideId "13504037"]
[WhiteElo "2139"]
[BlackElo "2459"]
[Result "0-1"]
[Round "1"]
[TimeControl "180+2"]
[Date "2023.06.13"]
[WhiteClock "0:00:13"]
[BlackClock "0:00:26"]
[Board "45"]

1. d4 {[%clk 0:03:00]}  Nf6 {[%clk 0:02:59]} 2. c4 {[%clk 0:02:59]}  e6 {[%clk 0:03:00]} 3. Nc3 {[%clk 0:02:59]}  Bb4 {[%clk 0:03:00]} 4. Nf3 {[%clk 0:02:55]}  b6 {[%clk 0:02:58]} 5. e3 {[%clk 0:02:55]}  Ne4 {[%clk 0:02:54]} 6. Bd2 {[%clk 0:02:53]}  Bxc3 {[%clk 0:02:51]} 7. Bxc3 {[%clk 0:02:52]}  Nxc3 {[%clk 0:02:51]} 8. bxc3 {[%clk 0:02:52]}  Nc6 {[%clk 0:02:47]} 9. Bd3 {[%clk 0:02:47]}  Ba6 {[%clk 0:02:44]} 10. O-O {[%clk 0:02:47]}  Na5 {[%clk 0:02:44]} 11. Qe2 {[%clk 0:02:47]}  d6 {[%clk 0:02:29]} 12. Nd2 {[%clk 0:02:42]}  c5 {[%clk 0:02:20]} 13. d5 {[%clk 0:02:37]}  e5 {[%clk 0:02:14]} 14. f4 {[%clk 0:02:38]}  Qe7 {[%clk 0:02:12]} 15. f5 {[%clk 0:02:27]}  f6 {[%clk 0:02:05]} 16. Ne4 {[%clk 0:02:21]}  O-O-O {[%clk 0:02:05]} 17. Kh1 {[%clk 0:02:19]}  Kc7 {[%clk 0:02:01]} 18. Rf3 {[%clk 0:02:07]}  Qd7 {[%clk 0:01:59]} 19. a4 {[%clk 0:02:07]}  Nb3 {[%clk 0:01:56]} 20. Ra3 {[%clk 0:02:04]}  Nc1 {[%clk 0:01:50]} 21. Qd2 {[%clk 0:02:04]}  Nxd3 {[%clk 0:01:50]} 22. Qxd3 {[%clk 0:02:05]}  Rhf8 {[%clk 0:01:41]} 23. Ra1 {[%clk 0:01:58]}  Rb8 {[%clk 0:01:38]} 24. h3 {[%clk 0:01:54]}  Qe8 {[%clk 0:01:37]} 25. Kh2 {[%clk 0:01:44]}  Bc8 {[%clk 0:01:35]} 26. a5 {[%clk 0:01:38]}  b5 {[%clk 0:01:31]} 27. Rff1 {[%clk 0:01:11]}  Ba6 {[%clk 0:01:25]} 28. Qc2 {[%clk 0:00:52]}  bxc4 {[%clk 0:01:15]} 29. Rfb1 {[%clk 0:00:47]}  Qd7 {[%clk 0:01:13]} 30. Nd2 {[%clk 0:00:45]}  Rxb1 {[%clk 0:00:53]} 31. Rxb1 {[%clk 0:00:44]}  Rb8 {[%clk 0:00:54]} 32. Rxb8 {[%clk 0:00:23]}  Kxb8 {[%clk 0:00:55]} 33. g4 {[%clk 0:00:22]}  Qb5 {[%clk 0:00:51]} 34. Qa2 {[%clk 0:00:20]}  Kc7 {[%clk 0:00:47]} 35. Kg3 {[%clk 0:00:21]}  e4 {[%clk 0:00:41]} 36. Kf4 {[%clk 0:00:20]}  Qe8 {[%clk 0:00:37]} 37. Nxe4 {[%clk 0:00:18]}  Qe5+ {[%clk 0:00:36]} 38. Kf3 {[%clk 0:00:19]}  Qxd5 {[%clk 0:00:37]} 39. Qb1 {[%clk 0:00:15]}  Bb7 {[%clk 0:00:36]} 40. Kf4 {[%clk 0:00:15]}  Qe5+ {[%clk 0:00:35]} 41. Kf3 {[%clk 0:00:16]}  Bc6 {[%clk 0:00:33]} 42. Qc2 {[%clk 0:00:14]}  Kb7 {[%clk 0:00:31]} 43. Qb1+ {[%clk 0:00:14]}  Ka6 {[%clk 0:00:30]} 44. h4 {[%clk 0:00:14]}  g6 {[%clk 0:00:29]} 45. fxg6 {[%clk 0:00:14]}  hxg6 {[%clk 0:00:30]} 46. Qb8 {[%clk 0:00:11]}  Qxe4+ {[%clk 0:00:29]} 47. Kf2 {[%clk 0:00:12]}  Qf3+ {[%clk 0:00:28]} 48. Kg1 {[%clk 0:00:13]}  Qg2# {[%clk 0:00:26]} 0-1


[Site "https://www.chess.com"]

[Event "Titled Tuesday Blitz June 13 Early 2023"]
[White "Harsha Bharathakoti"]
[Black "cristianserban1"]
[WhiteFideId "5078776"]
[WhiteElo "2504"]
[BlackElo "2490"]
[Result "1-0"]
[Round "1"]
[TimeControl "180+2"]
[Date "2023.06.13"]
[WhiteClock "0:01:20"]
[BlackClock "0:00:37"]
[Board "46"]

1. Nf3 {[%clk 0:02:59]}  d5 {[%clk 0:02:59]} 2. g3 {[%clk 0:03:00]}  Nf6 {[%clk 0:02:59]} 3. Bg2 {[%clk 0:03:00]}  c6 {[%clk 0:02:59]} 4. O-O {[%clk 0:02:57]}  Bf5 {[%clk 0:02:59]} 5. c4 {[%clk 0:02:57]}  e6 {[%clk 0:02:59]} 6. Qb3 {[%clk 0:02:57]}  Qb6 {[%clk 0:02:53]} 7. d3 {[%clk 0:02:56]}  Nbd7 {[%clk 0:02:51]} 8. Be3 {[%clk 0:02:54]}  Bc5 {[%clk 0:02:51]} 9. Bxc5 {[%clk 0:02:38]}  Nxc5 {[%clk 0:02:52]} 10. Qc2 {[%clk 0:02:34]}  h6 {[%clk 0:02:40]} 11. Nbd2 {[%clk 0:02:32]}  a5 {[%clk 0:02:36]} 12. Rfc1 {[%clk 0:02:28]}  Ncd7 {[%clk 0:02:33]} 13. Rab1 {[%clk 0:02:11]}  O-O {[%clk 0:02:32]} 14. Qc3 {[%clk 0:02:11]}  Qb4 {[%clk 0:02:28]} 15. a3 {[%clk 0:02:10]}  Qxc3 {[%clk 0:02:24]} 16. bxc3 {[%clk 0:02:10]}  b6 {[%clk 0:02:23]} 17. Nd4 {[%clk 0:02:10]}  Rfc8 {[%clk 0:02:17]} 18. Nxf5 {[%clk 0:02:09]}  exf5 {[%clk 0:02:18]} 19. cxd5 {[%clk 0:02:09]}  Nxd5 {[%clk 0:01:29]} 20. Nc4 {[%clk 0:01:29]}  Rcb8 {[%clk 0:01:28]} 21. Bxd5 {[%clk 0:01:25]}  cxd5 {[%clk 0:01:28]} 22. Ne3 {[%clk 0:01:26]}  f4 {[%clk 0:00:51]} 23. gxf4 {[%clk 0:01:23]}  Nf6 {[%clk 0:00:51]} 24. Rb5 {[%clk 0:01:23]}  Rc8 {[%clk 0:00:43]} 25. Nxd5 {[%clk 0:01:20]}  Nxd5 {[%clk 0:00:43]} 26. Rxd5 {[%clk 0:01:20]}  Rc6 {[%clk 0:00:37]} 27. c4 {[%clk 0:01:20]} 1-0


[Site "https://www.chess.com"]

[Event "Titled Tuesday Blitz June 13 Early 2023"]
[White "Petukhov, Dmitry"]
[Black "Vignesh N R"]
[WhiteFideId "4142748"]
[BlackFideId "25012215"]
[WhiteElo "2311"]
[BlackElo "2415"]
[Result "1/2-1/2"]
[Round "1"]
[TimeControl "180+2"]
[Date "2023.06.13"]
[WhiteClock "0:00:23"]
[BlackClock "0:00:19"]
[Board "47"]

1. e4 {[%clk 0:02:58]}  c5 {[%clk 0:02:59]} 2. c3 {[%clk 0:02:57]}  Nf6 {[%clk 0:02:59]} 3. e5 {[%clk 0:02:58]}  Nd5 {[%clk 0:02:58]} 4. d4 {[%clk 0:02:58]}  cxd4 {[%clk 0:02:56]} 5. Nf3 {[%clk 0:02:57]}  d6 {[%clk 0:02:56]} 6. Qxd4 {[%clk 0:02:53]}  e6 {[%clk 0:02:54]} 7. Bb5+ {[%clk 0:02:49]}  Bd7 {[%clk 0:02:53]} 8. Na3 {[%clk 0:02:48]}  Nc6 {[%clk 0:02:44]} 9. Bxc6 {[%clk 0:02:47]}  Bxc6 {[%clk 0:02:44]} 10. Nc4 {[%clk 0:02:48]}  dxe5 {[%clk 0:02:40]} 11. Ncxe5 {[%clk 0:02:46]}  Ne7 {[%clk 0:02:36]} 12. Qf4 {[%clk 0:02:31]}  f6 {[%clk 0:02:34]} 13. Nxc6 {[%clk 0:02:23]}  Nxc6 {[%clk 0:02:35]} 14. O-O {[%clk 0:02:24]}  Bd6 {[%clk 0:02:25]} 15. Qc4 {[%clk 0:02:05]}  Qd7 {[%clk 0:02:17]} 16. Re1 {[%clk 0:02:05]}  e5 {[%clk 0:02:13]} 17. Be3 {[%clk 0:01:56]}  Qf7 {[%clk 0:02:13]} 18. Qb5 {[%clk 0:01:41]}  O-O {[%clk 0:02:10]} 19. Rad1 {[%clk 0:01:36]}  Rfd8 {[%clk 0:02:08]} 20. h3 {[%clk 0:01:29]}  Bf8 {[%clk 0:02:00]} 21. Nd2 {[%clk 0:01:18]}  Rd7 {[%clk 0:01:59]} 22. Ne4 {[%clk 0:01:12]}  Rad8 {[%clk 0:01:56]} 23. Rxd7 {[%clk 0:01:13]}  Rxd7 {[%clk 0:01:55]} 24. Bc5 {[%clk 0:01:04]}  Rd5 {[%clk 0:01:25]} 25. b4 {[%clk 0:00:58]}  h6 {[%clk 0:01:11]} 26. Qa4 {[%clk 0:00:52]}  Bxc5 {[%clk 0:01:03]} 27. Nxc5 {[%clk 0:00:53]}  Rd2 {[%clk 0:01:03]} 28. b5 {[%clk 0:00:48]}  Nd8 {[%clk 0:00:45]} 29. Qxa7 {[%clk 0:00:48]}  Rxa2 {[%clk 0:00:38]} 30. Qb8 {[%clk 0:00:48]}  Rd2 {[%clk 0:00:33]} 31. b6 {[%clk 0:00:46]}  Kh7 {[%clk 0:00:32]} 32. Qc7 {[%clk 0:00:39]}  Qd5 {[%clk 0:00:24]} 33. c4 {[%clk 0:00:32]}  Qd4 {[%clk 0:00:19]} 34. Ne4 {[%clk 0:00:29]}  Rd1 {[%clk 0:00:17]} 35. Rxd1 {[%clk 0:00:22]}  Qxd1+ {[%clk 0:00:18]} 36. Kh2 {[%clk 0:00:23]}  Kg6 {[%clk 0:00:18]} 37. Nd6 {[%clk 0:00:21]}  Qd4 {[%clk 0:00:17]} 38. Qxd8 {[%clk 0:00:21]}  Qf4+ {[%clk 0:00:17]} 39. Kg1 {[%clk 0:00:20]}  Qc1+ {[%clk 0:00:18]} 40. Kh2 {[%clk 0:00:21]}  Qf4+ {[%clk 0:00:18]} 41. Kg1 {[%clk 0:00:22]}  Qc1+ {[%clk 0:00:19]} 42. Kh2 {[%clk 0:00:23]}  Qf4+ {[%clk 0:00:19]} 1/2-1/2


[Site "https://www.chess.com"]

[Event "Titled Tuesday Blitz June 13 Early 2023"]
[White "qx4z"]
[Black "Santos Flores, Alberto"]
[BlackFideId "3601234"]
[WhiteElo "2856"]
[BlackElo "2235"]
[Result "0-1"]
[Round "1"]
[TimeControl "180+2"]
[Date "2023.06.13"]
[WhiteClock "0:00:11"]
[BlackClock "0:00:22"]
[Board "48"]

1. d4 {[%clk 0:03:00]}  d5 {[%clk 0:02:59]} 2. Bf4 {[%clk 0:03:00]}  Nf6 {[%clk 0:02:59]} 3. e3 {[%clk 0:03:00]}  c5 {[%clk 0:02:58]} 4. Nf3 {[%clk 0:03:00]}  Nc6 {[%clk 0:02:58]} 5. Nbd2 {[%clk 0:03:00]}  cxd4 {[%clk 0:02:54]} 6. exd4 {[%clk 0:03:01]}  Bf5 {[%clk 0:02:54]} 7. Bb5 {[%clk 0:03:00]}  Rc8 {[%clk 0:02:54]} 8. Ne5 {[%clk 0:02:59]}  Bd7 {[%clk 0:02:50]} 9. Nxd7 {[%clk 0:02:56]}  Qxd7 {[%clk 0:02:50]} 10. c3 {[%clk 0:02:56]}  a6 {[%clk 0:02:50]} 11. Bd3 {[%clk 0:02:55]}  e6 {[%clk 0:02:49]} 12. Nf3 {[%clk 0:02:56]}  Bd6 {[%clk 0:02:49]} 13. Ne5 {[%clk 0:02:53]}  Qc7 {[%clk 0:02:45]} 14. Qe2 {[%clk 0:02:39]}  Nd7 {[%clk 0:02:41]} 15. Nxd7 {[%clk 0:01:40]}  Bxf4 {[%clk 0:02:24]} 16. Nc5 {[%clk 0:01:40]}  Bd6 {[%clk 0:02:15]} 17. Nb3 {[%clk 0:01:34]}  O-O {[%clk 0:02:12]} 18. g3 {[%clk 0:01:31]}  a5 {[%clk 0:01:40]} 19. a4 {[%clk 0:01:26]}  e5 {[%clk 0:01:33]} 20. dxe5 {[%clk 0:01:25]}  Nxe5 {[%clk 0:01:33]} 21. O-O {[%clk 0:01:25]}  Rfe8 {[%clk 0:01:29]} 22. Rae1 {[%clk 0:01:18]}  Nxd3 {[%clk 0:01:13]} 23. Qxd3 {[%clk 0:01:17]}  Qc4 {[%clk 0:01:08]} 24. Qxc4 {[%clk 0:01:09]}  dxc4 {[%clk 0:01:09]} 25. Nd4 {[%clk 0:01:07]}  Bc5 {[%clk 0:01:07]} 26. Nb5 {[%clk 0:01:07]}  Kf8 {[%clk 0:00:56]} 27. Kg2 {[%clk 0:00:59]}  Rcd8 {[%clk 0:00:55]} 28. Rxe8+ {[%clk 0:00:56]}  Kxe8 {[%clk 0:00:52]} 29. Re1+ {[%clk 0:00:56]}  Kf8 {[%clk 0:00:52]} 30. Re5 {[%clk 0:00:53]}  b6 {[%clk 0:00:50]} 31. Re2 {[%clk 0:00:38]}  Rd1 {[%clk 0:00:49]} 32. h4 {[%clk 0:00:34]}  g6 {[%clk 0:00:47]} 33. Kf3 {[%clk 0:00:34]}  Ra1 {[%clk 0:00:47]} 34. Nc7 {[%clk 0:00:32]}  Rxa4 {[%clk 0:00:44]} 35. Nd5 {[%clk 0:00:32]}  Ra2 {[%clk 0:00:40]} 36. h5 {[%clk 0:00:32]}  Kg7 {[%clk 0:00:35]} 37. g4 {[%clk 0:00:29]}  gxh5 {[%clk 0:00:33]} 38. gxh5 {[%clk 0:00:29]}  a4 {[%clk 0:00:32]} 39. Re4 {[%clk 0:00:15]}  Rxb2 {[%clk 0:00:28]} 40. Rxc4 {[%clk 0:00:16]}  a3 {[%clk 0:00:27]} 41. Rg4+ {[%clk 0:00:15]}  Kf8 {[%clk 0:00:26]} 42. Ra4 {[%clk 0:00:16]}  h6 {[%clk 0:00:23]} 43. Nf6 {[%clk 0:00:11]}  Rxf2+ {[%clk 0:00:22]} 0-1


[Site "https://www.chess.com"]